bitfinex/quotes_BTCUSD_20251114
["timestamp","ask_amount","ask_price","bid_price","bid_amount"]
[1763090090174,0.2011352,99436.0,99429.0,0.0102]
[1763090090373,0.00111965,99439.0,99429.0,0.0102]
[1763090090602,0.20113923,99434.0,99429.0,0.0102]
[1763090090788,0.20113035,99438.0,99429.0,0.0092]
[1763090090955,0.20113853,99434.0,99429.0,0.0092]
[1763090092317,0.20113853,99434.0,99429.0,0.033]
[1763090093534,0.20113672,99435.0,99429.0,0.21034714]
[1763090093757,0.20113672,99435.0,99430.0,0.0238]
[1763090094159,0.20113243,99437.0,99431.0,0.01163]
[1763090094375,0.20111671,99445.0,99439.0,0.01619]
[1763090094573,0.2011223,99442.0,99440.0,0.01619]
[1763090095475,0.20113035,99438.0,99437.0,0.0238]
[1763090096341,0.20113624,99436.0,99431.0,0.01163]
[1763090096563,0.20113888,99434.0,99432.0,0.0238]
[1763090096986,0.20113455,99436.0,99432.0,0.0238]
[1763090097966,0.20113455,99436.0,99432.0,0.0248]
[1763090098431,0.20114046,99433.0,99432.0,0.001]
[1763090099159,0.20114046,99433.0,99429.0,0.0092]
[1763090099606,0.20114046,99433.0,99432.0,0.001]
[1763090100173,0.20114046,99433.0,99429.0,0.0092]
[1763090100371,0.20114248,99432.0,99429.0,0.03359]
[1763090100572,0.20114609,99431.0,99429.0,0.03359]
[1763090100784,0.12311237,99430.0,99429.0,0.001]
[1763090100994,0.20116474,99421.0,99420.0,0.00085859]
[1763090101201,0.03021563,99430.0,99429.0,0.02821]
[1763090101403,0.23136216,99430.0,99429.0,0.01192]
[1763090101606,0.20116272,99422.0,99420.0,0.00085859]
[1763090102855,0.20116272,99422.0,99421.0,0.02339]
[1763090103061,0.02793,99421.0,99420.0,0.00085859]
[1763090103473,0.02793,99421.0,99420.0,0.00185859]
[1763090103937,0.02793,99421.0,99420.0,0.00085859]
[1763090104141,0.09107118,99421.0,99420.0,0.00085859]
[1763090105097,0.09107118,99421.0,99410.0,1e-08]
[1763090105098,0.22911497,99411.0,99410.0,1e-08]
[1763090105294,0.22957375,99411.0,99410.0,1e-08]
[1763090105726,0.55257375,99411.0,99410.0,1e-08]
[1763090105898,0.52422546,99391.0,99390.0,0.0004]
[1763090106099,0.55195546,99391.0,99390.0,0.0004]
[1763090106521,0.55598574,99391.0,99390.0,0.0004]
[1763090107256,0.55698574,99391.0,99390.0,0.0004]
[1763090107462,2.69788784,99391.0,99390.0,1e-08]
[1763090107823,2.69888784,99391.0,99390.0,1e-08]
[1763090108244,2.69888784,99391.0,99380.0,1e-08]
[1763090108245,2.54062571,99381.0,99380.0,1e-08]
[1763090108443,2.54062571,99381.0,99342.0,0.01192]
[1763090108444,0.09523237,99347.0,99342.0,0.01192]
[1763090108681,0.02965447,99346.0,99342.0,0.01192]
[1763090109091,0.20527649,99351.0,99342.0,0.01192]
[1763090109264,0.09523237,99347.0,99342.0,0.01192]
[1763090109666,0.09523237,99347.0,99342.0,0.21324334]
[1763090109867,0.00045822,99351.0,99343.0,0.02498]
[1763090110064,0.00045822,99351.0,99344.0,0.20131918]
[1763090110365,0.00045822,99351.0,99333.0,0.21326142]
[1763090110366,0.01638,99341.0,99297.0,0.05026397]
[1763090110573,0.01007252,99280.0,99245.0,0.2035964]
[1763090110788,0.01007252,99280.0,99200.0,0.02142064]
[1763090110789,0.02999997,99230.0,99222.0,0.01134]
[1763090111204,0.04341874,99229.0,99222.0,0.01134]
[1763090111479,0.03027931,99229.0,99222.0,0.01134]
[1763090111668,0.02999997,99230.0,99222.0,0.01134]
[1763090111669,0.02999997,99230.0,99223.0,0.02498]
[1763090111871,0.00045737,99229.0,99209.0,0.01134]
[1763090112074,0.00045737,99229.0,99220.0,0.38518178]
[1763090112273,0.00045737,99229.0,99228.0,0.02666]
[1763090112431,0.02999997,99240.0,99228.0,0.02666]
[1763090112432,0.00999999,99240.0,99230.0,0.77036356]
[1763090112633,7.354e-05,99240.0,99239.0,0.01532]
[1763090112841,0.02216514,99260.0,99249.0,0.02666]
[1763090113022,0.20149306,99259.0,99249.0,0.02666]
[1763090113217,0.02223899,99260.0,99249.0,0.02666]
[1763090113447,0.09523237,99259.0,99249.0,0.02666]
[1763090114483,0.20150727,99252.0,99249.0,0.02666]
[1763090114773,0.20151101,99251.0,99249.0,0.01134]
[1763090115517,0.20151133,99250.0,99249.0,0.01134]
[1763090115725,0.20151133,99250.0,99237.0,0.01134]
[1763090115726,0.2015357,99238.0,99237.0,0.01134]
[1763090115933,0.20158466,99214.0,99212.0,0.02498]
[1763090116141,0.02216514,99220.0,99202.0,0.09523237]
[1763090116346,0.20158906,99212.0,99204.0,0.02498]
[1763090116583,0.22174797,99212.0,99204.0,0.02498]
[1763090116784,0.02216514,99220.0,99210.0,0.02498]
[1763090116961,0.00999999,99220.0,99219.0,0.01532]
[1763090117189,0.00999999,99220.0,99210.0,0.00045737]
[1763090117380,0.20158806,99213.0,99210.0,0.00045737]
[1763090117582,0.24500928,99211.0,99210.0,0.00045737]
[1763090118185,0.20159054,99211.0,99210.0,0.00092278]
[1763090118518,1.45681077,99240.0,99219.0,0.02666]
[1763090118519,0.02216514,99230.0,99219.0,0.02666]
[1763090118720,0.20157121,99221.0,99219.0,0.02666]
[1763090119193,0.20157121,99221.0,99219.0,0.01134]
[1763090119343,0.20159054,99211.0,99210.0,0.00045737]
[1763090123676,0.56800928,99211.0,99210.0,0.00045737]
[1763090124409,0.56800928,99211.0,99210.0,1e-08]
[1763090124615,0.58892248,99211.0,99210.0,1e-08]
[1763090125238,0.62297705,99211.0,99210.0,1e-08]
[1763090125443,0.70543347,99211.0,99210.0,1e-08]
[1763090125640,0.56800928,99211.0,99210.0,1e-08]
[1763090125846,0.56900928,99211.0,99210.0,1e-08]
[1763090126019,1.00807567,99211.0,99210.0,1e-08]
[1763090126218,1.00907567,99211.0,99210.0,1e-08]
[1763090126428,0.57000928,99211.0,99210.0,1e-08]
[1763090126839,0.201619,99197.0,99196.0,0.02340214]
[1763090127044,0.00045874,99197.0,99196.0,0.02340214]
[1763090127438,0.00045874,99197.0,99196.0,0.0237642]
[1763090127439,0.09569111,99197.0,99196.0,0.0237642]
[1763090128626,0.00045874,99197.0,99196.0,0.0237642]
[1763090130775,0.00045874,99197.0,99196.0,0.00036206]
[1763090133197,0.00045874,99197.0,99196.0,0.02553206]
[1763090134251,0.02155896,99197.0,99196.0,0.02553206]
[1763090134473,0.02155896,99197.0,99196.0,0.00036206]
[1763090136892,0.20162103,99196.0,99195.0,0.01028198]
[1763090137091,0.22272125,99196.0,99195.0,0.01028198]
[1763090137910,0.27574878,99196.0,99195.0,0.01028198]
[1763090138117,0.20163729,99188.0,99187.0,0.00023281]
[1763090138324,0.27588374,99188.0,99187.0,0.00023281]
[1763090138730,0.22273751,99188.0,99187.0,0.00023281]
[1763090138933,0.27588374,99188.0,99187.0,0.00023281]
[1763090139134,0.22273751,99188.0,99187.0,0.00023281]
[1763090139335,0.30204536,99188.0,99187.0,0.00023281]
[1763090139628,0.30204536,99188.0,99176.0,0.03736]
[1763090139629,0.20165965,99177.0,99176.0,0.01219]
[1763090139835,0.22275987,99177.0,99176.0,0.01219]
[1763090140262,0.20167592,99169.0,99168.0,0.03651]
[1763090140484,0.22277614,99169.0,99168.0,0.03651]
[1763090140687,0.22277614,99169.0,99168.0,0.01134]
[1763090141106,0.2940481,99169.0,99168.0,0.01134]
[1763090141308,0.30203775,99169.0,99168.0,0.01134]
[1763090141566,0.22277614,99169.0,99168.0,0.01183157]
[1763090141768,0.22277614,99169.0,99168.0,0.00049157]
[1763090142186,0.24133484,99169.0,99168.0,0.00149157]
[1763090142392,0.22277614,99169.0,99168.0,0.00149157]
[1763090142597,0.56433423,99169.0,99168.0,1e-08]
[1763090142855,0.68916617,99169.0,99168.0,1e-08]
[1763090143047,0.20169626,99159.0,99153.0,0.01219]
[1763090143260,0.22279648,99159.0,99145.0,0.01219]
[1763090143460,0.22279648,99159.0,99139.0,0.01219]
[1763090143461,0.24135748,99159.0,99139.0,0.01219]
[1763090143794,0.31319549,99159.0,99139.0,0.01219]
[1763090144241,0.31365394,99159.0,99158.0,0.00589655]
[1763090144411,0.689355,99159.0,99158.0,0.00589655]
[1763090145167,0.66317054,99159.0,99158.0,0.00589655]
[1763090145371,0.04011967,99159.0,99158.0,0.00589655]
[1763090145569,0.04011967,99159.0,99152.0,0.2017105]
[1763090145774,0.05349502,99154.0,99152.0,0.2017105]
[1763090146045,0.0567665,99153.0,99152.0,0.2017105]
[1763090146189,0.02110022,99153.0,99152.0,0.2017105]
[1763090146800,0.03566628,99178.0,99170.0,0.01872193]
[1763090147020,0.02140591,99177.0,99176.0,0.20166169]
[1763090147831,0.05349502,99196.0,99170.0,0.01013775]
[1763090147832,0.02140591,99189.0,99188.0,0.20163729]
[1763090148234,0.02140591,99189.0,99185.0,0.01219]
[1763090148235,0.02140591,99199.0,99198.0,0.20161696]
[1763090148638,0.02140591,99209.0,99207.0,0.01612]
[1763090148836,0.01150997,99210.0,99209.0,0.01612]
[1763090149267,0.02010832,99210.0,99209.0,0.01612]
[1763090149468,0.00150998,99210.0,99209.0,0.01612]
[1763090149826,0.00150998,99210.0,99209.0,0.01625775]
[1763090150894,0.00150998,99210.0,99209.0,0.00013775]
[1763090156989,0.00150998,99210.0,99207.0,0.20058557]
[1763090157216,0.00150998,99210.0,99207.0,0.20072309]
[1763090157419,0.00150998,99210.0,99209.0,0.20159461]
[1763090161458,0.00999999,99240.0,99239.0,0.20153367]
[1763090161661,0.20150524,99253.0,99249.0,0.02852]
[1763090161863,0.20150204,99255.0,99253.0,0.01606]
[1763090162126,0.02007454,99260.0,99250.0,0.02458]
[1763090162405,0.00999999,99260.0,99258.0,0.01606]
[1763090162618,0.00999999,99260.0,99259.0,0.01606]
[1763090162619,0.0104591,99260.0,99259.0,0.01606]
[1763090162844,0.0104591,99260.0,99258.0,0.02458]
[1763090163027,0.00045911,99260.0,99258.0,0.02458]
[1763090163231,0.00045911,99260.0,99259.0,0.20149306]
[1763090163671,0.00145911,99260.0,99259.0,0.20149306]
[1763090164149,0.00045911,99260.0,99259.0,0.19114067]
[1763090165077,0.00145911,99260.0,99259.0,0.19114067]
[1763090165475,0.00045911,99260.0,99259.0,0.19114067]
[1763090165872,0.00045911,99260.0,99259.0,0.19214067]
[1763090166090,0.00045911,99260.0,99259.0,0.001]
[1763090166294,0.00045911,99260.0,99250.0,0.01972193]
[1763090166295,0.00045911,99260.0,99256.0,0.02458]
[1763090166494,0.00045911,99260.0,99259.0,0.02952]
[1763090166698,0.00045911,99260.0,99259.0,0.01446]
[1763090167290,0.00045911,99260.0,99259.0,0.01346]
[1763090167635,0.00175127,99260.0,99259.0,0.01346]
[1763090167849,0.00175127,99260.0,99259.0,0.21495306]
[1763090168084,0.00175127,99260.0,99259.0,0.21395306]
[1763090169273,0.00175127,99260.0,99259.0,0.21495306]
[1763090170217,0.00175127,99260.0,99259.0,0.01346]
[1763090173975,0.00175127,99260.0,99259.0,0.03838]
[1763090174388,0.00175127,99260.0,99259.0,0.21495306]
[1763090175525,0.00175127,99260.0,99259.0,0.01346]
[1763090175741,0.00175127,99260.0,99259.0,0.21495306]
[1763090175943,0.00175127,99260.0,99259.0,0.01346]
[1763090176523,0.00175127,99260.0,99259.0,0.03838]
[1763090176812,0.2032423,99260.0,99259.0,0.01346]
[1763090177599,0.2032423,99260.0,99259.0,0.03838]
[1763090178065,0.2032423,99260.0,99259.0,0.01346]
[1763090178857,0.00175127,99260.0,99259.0,0.01346]
[1763090179607,0.2032423,99260.0,99259.0,0.01346]
[1763090180719,0.00175127,99260.0,99259.0,0.01346]
[1763090181826,0.00175127,99260.0,99259.0,0.21495306]
[1763090182030,0.0100715,99290.0,99260.0,0.01007455]
[1763090182235,0.31526149,99289.0,99288.0,0.01251]
[1763090182426,0.29666455,99289.0,99288.0,0.01251]
[1763090183185,0.20144028,99286.0,99282.0,0.01251]
[1763090183383,0.20143846,99286.0,99282.0,0.01251]
[1763090183715,0.09523237,99289.0,99283.0,0.20144435]
[1763090183850,0.09523237,99289.0,99287.0,0.20143592]
[1763090184703,0.3232,99300.0,99286.0,0.02492]
[1763090184902,0.3232,99300.0,99282.0,0.01251]
[1763090184903,0.09523237,99297.0,99296.0,0.02845]
[1763090185220,0.09523237,99297.0,99296.0,0.22986798]
[1763090185221,0.01860626,99297.0,99296.0,0.22986798]
[1763090185449,0.0002,99300.0,99299.0,0.20141189]
[1763090186068,0.0002,99300.0,99299.0,0.20154941]
[1763090186490,0.0012,99300.0,99299.0,0.20154941]
[1763090186698,0.0002,99300.0,99299.0,0.20154941]
[1763090187125,0.0002,99300.0,99299.0,0.20254941]
[1763090187328,0.0002,99300.0,99299.0,0.20354941]
[1763090189210,0.0002,99300.0,99299.0,0.52654941]
[1763090189820,0.0002,99300.0,99299.0,0.52454941]
[1763090190234,0.0002,99300.0,99299.0,0.52654941]
[1763090191065,0.323,99345.0,99333.0,0.20134127]
[1763090191264,0.34159357,99343.0,99333.0,0.20134127]
[1763090191500,0.01859357,99342.0,99335.0,0.2013389]
[1763090191618,0.20132705,99341.0,99334.0,0.07613957]
[1763090191819,0.20132471,99342.0,99334.0,0.07613957]
[1763090192231,0.20132471,99342.0,99334.0,0.05213709]
[1763090192610,0.20132674,99341.0,99335.0,0.02414]
[1763090192785,0.09723237,99344.0,99343.0,0.01559]
[1763090192992,0.09523237,99344.0,99338.0,0.20133114]
[1763090193147,0.09523237,99344.0,99343.0,0.01559]
[1763090193344,0.001,99342.0,99339.0,0.02414]
[1763090193563,0.20132674,99341.0,99340.0,0.01173]
[1763090193973,0.20131669,99346.0,99340.0,0.01173]
[1763090194177,0.2013124,99349.0,99340.0,0.03587]
[1763090194541,0.09523237,99344.0,99340.0,0.23719848]
[1763090194784,0.2013124,99349.0,99348.0,0.01559]
[1763090195026,0.5243085,99350.0,99349.0,0.01559]
[1763090195258,0.323,99350.0,99349.0,0.01559]
[1763090195672,0.20132307,99343.0,99341.0,0.02414]
[1763090196269,0.09523237,99344.0,99341.0,0.02414]
[1763090196446,0.09523237,99368.0,99342.0,0.20132471]
[1763090196648,0.20129027,99359.0,99356.0,0.01559]
[1763090196846,0.53455265,99360.0,99359.0,0.01559]
[1763090197025,0.21155265,99360.0,99359.0,0.01559]
[1763090199442,0.21255265,99360.0,99359.0,0.01559]
[1763090199886,0.21513371,99360.0,99359.0,0.01559]
[1763090202413,0.00378106,99360.0,99359.0,0.01559]
[1763090202819,0.00378106,99360.0,99357.0,0.2012939]
[1763090202998,0.0012,99360.0,99357.0,0.2012939]
[1763090203200,0.0012,99360.0,99359.0,0.20129027]
[1763090203614,0.0002,99360.0,99359.0,0.20129027]
[1763090203835,0.0002,99360.0,99354.0,0.2013004]
[1763090204053,0.0002,99360.0,99359.0,0.02732]
[1763090204254,0.0002,99360.0,99359.0,0.01173]
[1763090206640,0.0002,99360.0,99359.0,0.01273]
[1763090211971,0.20148824,99360.0,99359.0,0.01273]
[1763090212351,0.00278106,99360.0,99359.0,0.01273]
[1763090212753,0.00278106,99360.0,99359.0,0.01173]
[1763090213186,0.00278106,99360.0,99359.0,0.001]
[1763090213598,0.00379106,99360.0,99359.0,0.001]
[1763090213799,0.02235854,99360.0,99359.0,0.001]
[1763090214002,0.39806076,99360.0,99359.0,0.001]
[1763090214417,0.20132674,99341.0,99340.0,0.01173]
[1763090214622,0.2013389,99335.0,99334.0,0.00013752]
[1763090214828,0.22092768,99335.0,99334.0,0.00013752]
[1763090215030,0.59663404,99335.0,99334.0,1e-08]
[1763090215232,0.68864923,99335.0,99334.0,1e-08]
[1763090215648,0.20140986,99300.0,99299.0,0.01173]
[1763090215866,0.20154759,99300.0,99299.0,0.01173]
[1763090216072,0.00013773,99300.0,99299.0,0.01173]
[1763090216269,0.00013773,99300.0,99299.0,0.02732]
[1763090216270,4.715e-05,99300.0,99299.0,0.02732]
[1763090216785,4.715e-05,99300.0,99299.0,0.01173]
[1763090218610,4.715e-05,99300.0,99299.0,0.01273]
[1763090219012,0.06047328,99300.0,99299.0,0.01273]
[1763090220046,4.715e-05,99300.0,99299.0,0.01273]
[1763090220504,4.715e-05,99300.0,99299.0,0.01173]
[1763090220914,4.715e-05,99300.0,99299.0,0.03505]
[1763090221335,0.01006846,99320.0,99299.0,0.03505]
[1763090221336,0.55197561,99350.0,99299.0,0.01173]
[1763090221540,0.00013765,99330.0,99329.0,0.0166]
[1763090221758,0.20136728,99321.0,99320.0,0.01972193]
[1763090222421,0.20136728,99321.0,99316.0,0.01149]
[1763090222422,0.20137539,99317.0,99316.0,0.01149]
[1763090223010,0.20138756,99311.0,99310.0,0.01972193]
[1763090223215,0.20142812,99291.0,99290.0,0.01972193]
[1763090223785,0.20144638,99282.0,99281.0,0.01173]
[1763090224209,0.20144363,99284.0,99281.0,0.01173]
[1763090224371,0.20142607,99293.0,99290.0,0.02809]
[1763090224606,0.20141185,99300.0,99290.0,0.02809]
[1763090224829,0.20141185,99300.0,99299.0,0.0166]
[1763090225431,0.00103304,99300.0,99299.0,0.0166]
[1763090225884,0.00103304,99300.0,99297.0,0.2014155]
[1763090226090,0.20138237,99314.0,99306.0,0.0166]
[1763090226429,0.00121374,99307.0,99306.0,0.0166]
[1763090226642,0.00121374,99307.0,99304.0,0.20140079]
[1763090226844,0.20137177,99319.0,99313.0,0.02809]
[1763090227166,0.20135106,99329.0,99318.0,0.0166]
[1763090227366,0.20135106,99329.0,99322.0,0.01512]
[1763090227367,0.296592,99325.0,99322.0,0.01512]
[1763090227566,0.09523237,99325.0,99300.0,0.01972193]
[1763090227765,0.09523237,99325.0,99300.0,0.24502086]
[1763090227766,0.20138891,99311.0,99300.0,0.24502086]
[1763090228002,0.20140713,99302.0,99300.0,0.01972193]
[1763090228582,0.20142365,99294.0,99290.0,0.03121193]
[1763090228783,0.20141695,99297.0,99290.0,0.03134966]
[1763090228983,0.20141695,99297.0,99290.0,0.23277952]
[1763090229222,0.0011,99317.0,99290.0,0.03134966]
[1763090229423,0.20142556,99293.0,99290.0,0.01162773]
[1763090229833,0.20142556,99293.0,99290.0,0.00013773]
[1763090231232,0.20142556,99293.0,99290.0,0.00113773]
[1763090231618,0.20142556,99293.0,99290.0,0.00013773]
[1763090232298,0.21524254,99293.0,99290.0,0.00013773]
[1763090232913,0.20142556,99293.0,99290.0,0.00013773]
[1763090233127,0.20252812,99291.0,99290.0,0.00013773]
[1763090234180,0.20142812,99291.0,99290.0,0.00013773]
[1763090235051,0.20252812,99291.0,99290.0,0.00013773]
[1763090236599,0.01006846,99320.0,99290.0,0.00013773]
[1763090236799,0.20142809,99292.0,99290.0,0.01985966]
[1763090236998,0.20142809,99292.0,99290.0,0.00013773]
[1763090237644,0.2013959,99307.0,99299.0,0.02672]
[1763090237783,0.09623237,99309.0,99300.0,0.20140986]
[1763090237988,0.00103304,99300.0,99299.0,0.02672]
[1763090238199,0.00103304,99300.0,99299.0,0.21301189]
[1763090239313,0.00103304,99300.0,99299.0,0.0116]
[1763090239513,0.20142203,99294.0,99290.0,0.00013773]
[1763090239767,0.2966544,99294.0,99290.0,0.00013773]
[1763090240172,0.20142608,99293.0,99290.0,0.00013773]
[1763090240388,0.2014281,99292.0,99290.0,0.00013773]
[1763090240701,0.20141632,99297.0,99290.0,0.00013773]
[1763090241136,0.20137206,99319.0,99299.0,0.22812986]
[1763090241347,0.20138489,99313.0,99303.0,0.20140343]
[1763090241559,0.29662213,99310.0,99301.0,0.20140635]
[1763090241804,0.09523237,99310.0,99303.0,0.20140362]
[1763090242020,0.20136871,99321.0,99310.0,0.20138836]
[1763090242262,0.001,99319.0,99308.0,0.20139316]
[1763090242459,0.20139991,99305.0,99302.0,0.02389]
[1763090242783,0.20139991,99305.0,99300.0,0.01972193]
[1763090242784,0.43876288,99320.0,99303.0,0.02389]
[1763090243029,0.01006745,99330.0,99303.0,0.02389]
[1763090243030,0.20136096,99325.0,99319.0,0.01512]
[1763090243239,0.09523237,99325.0,99319.0,0.01512]
[1763090243770,0.29659356,99325.0,99318.0,0.0116]
[1763090243977,0.29659356,99325.0,99313.0,0.0116]
[1763090243978,0.20137434,99318.0,99313.0,0.0116]
[1763090244181,0.20135714,99326.0,99315.0,0.20137944]
[1763090244380,0.09523237,99322.0,99313.0,0.0116]
[1763090244621,0.09523237,99322.0,99318.0,0.20137139]
[1763090244864,0.09523237,99322.0,99321.0,0.01512]
[1763090245877,0.09623237,99322.0,99321.0,0.01512]
[1763090246248,0.29759762,99322.0,99321.0,0.01512]
[1763090246636,0.09723237,99322.0,99321.0,0.01512]
[1763090246845,0.11028498,99325.0,99321.0,0.01512]
[1763090247039,0.04341874,99339.0,99321.0,0.01512]
[1763090247224,0.09523237,99326.0,99322.0,0.20136525]
[1763090247433,0.09523237,99326.0,99322.0,0.0116]
[1763090248238,0.20136322,99323.0,99322.0,0.0116]
[1763090249350,0.20235917,99325.0,99322.0,0.0116]
[1763090249571,0.20135917,99325.0,99322.0,0.0116]
[1763090250015,0.001,99323.0,99322.0,0.0116]
[1763090250448,0.20133652,99337.0,99331.0,0.0269]
[1763090250891,0.00185888,99332.0,99331.0,0.0269]
[1763090251372,0.2013612,99324.0,99322.0,0.0116]
[1763090251594,0.00013768,99339.0,99323.0,0.02447]
[1763090251813,0.20134766,99331.0,99323.0,0.22583322]
[1763090252035,0.20134766,99331.0,99323.0,0.20136322]
[1763090252255,0.20134903,99330.0,99322.0,0.0116]
[1763090252464,0.20136222,99324.0,99322.0,0.0116]
[1763090253404,0.20135933,99325.0,99322.0,0.0116]
[1763090253803,0.20135404,99328.0,99322.0,0.0116]
[1763090253804,0.20135495,99328.0,99322.0,0.0116]
[1763090254230,0.20136312,99324.0,99322.0,0.0116]
[1763090255188,0.20136312,99324.0,99322.0,0.03607]
[1763090255975,0.20136312,99324.0,99322.0,0.0116]
[1763090257178,0.20301559,99324.0,99322.0,0.0116]
[1763090257411,0.323,99337.0,99322.0,0.0116]
[1763090257640,0.20135641,99327.0,99322.0,0.0116]
[1763090258448,0.20136288,99324.0,99322.0,0.0116]
[1763090258589,0.20136728,99321.0,99320.0,0.1]
[1763090258786,0.20241728,99321.0,99320.0,0.1]
[1763090258999,0.20136708,99322.0,99320.0,0.1]
[1763090259427,0.20136708,99322.0,99321.0,0.01186]
[1763090260764,0.20136322,99323.0,99321.0,0.01186]
[1763090260994,0.20134498,99333.0,99321.0,0.01186]
[1763090261215,0.20135165,99329.0,99322.0,0.22583525]
[1763090261431,0.20135165,99329.0,99322.0,0.2258346]
[1763090261668,0.20134748,99331.0,99322.0,0.2258346]
[1763090261881,0.20134262,99334.0,99324.0,0.20136074]
[1763090262091,0.20133975,99335.0,99324.0,0.20136074]
[1763090262092,0.20134488,99333.0,99325.0,0.20135737]
[1763090262778,0.20134681,99332.0,99325.0,0.20135737]
[1763090262981,0.20134935,99330.0,99323.0,0.02447]
[1763090263212,0.20136099,99325.0,99323.0,0.02447]
[1763090263423,0.2013551,99328.0,99323.0,0.02447]
[1763090263630,0.20135273,99329.0,99323.0,0.02447]
[1763090263857,0.20134093,99334.0,99323.0,0.02447]
[1763090263858,0.20135494,99328.0,99323.0,0.02447]
[1763090264449,0.20146848,99339.0,99330.0,0.01972193]
[1763090264450,0.00013768,99339.0,99330.0,0.01972193]
[1763090264667,0.2013376,99336.0,99333.0,0.01504]
[1763090264877,0.2013376,99336.0,99331.0,0.02447]
[1763090265113,0.20133451,99338.0,99331.0,0.22581525]
[1763090265114,0.20133467,99338.0,99331.0,0.22581525]
[1763090265349,0.20147022,99339.0,99331.0,0.27050382]
[1763090265350,0.29670259,99339.0,99331.0,0.27050382]
[1763090265586,0.09537005,99339.0,99336.0,0.01186]
[1763090265805,0.29670094,99339.0,99336.0,0.01186]
[1763090266010,0.09537005,99339.0,99336.0,0.01186]
[1763090266219,0.00013768,99339.0,99336.0,0.01186]
[1763090266449,0.00013768,99339.0,99337.0,0.27167695]
[1763090266879,0.00013768,99339.0,99338.0,0.02447]
[1763090269305,0.1752191,99358.0,99344.0,0.20131893]
[1763090269527,0.20129092,99359.0,99351.0,0.0269]
[1763090269735,0.01026441,99360.0,99357.0,0.01504]
[1763090269906,0.0002,99360.0,99357.0,0.01504]
[1763090270107,0.00252946,99358.0,99357.0,0.01504]
[1763090270648,0.00252946,99358.0,99357.0,0.03918925]
[1763090270858,0.00252946,99358.0,99357.0,0.06365925]
[1763090271059,0.00252946,99358.0,99357.0,0.03918925]
[1763090271557,0.00252946,99358.0,99357.0,0.02414925]
[1763090273003,0.00252946,99358.0,99356.0,0.20129538]
[1763090273206,0.20129027,99359.0,99357.0,0.01186]
[1763090273409,0.0002,99360.0,99357.0,0.01186]
[1763090273607,0.0002,99360.0,99357.0,0.03633]
[1763090274216,0.0002,99360.0,99359.0,0.20129027]
[1763090274420,0.0002,99360.0,99359.0,0.24518203]
[1763090275038,0.0002,99360.0,99359.0,0.20129027]
[1763090275253,0.0002,99360.0,99359.0,0.22576027]
[1763090275844,0.0002,99360.0,99359.0,0.20129027]
[1763090281499,0.0002,99360.0,99357.0,0.01186]
[1763090281740,0.0002,99360.0,99351.0,0.01186]
[1763090281992,0.0002,99360.0,99351.0,0.05815738]
[1763090282201,0.20130955,99350.0,99344.0,0.02398]
[1763090282416,0.0002,99360.0,99344.0,0.02398]
[1763090282417,0.20131624,99347.0,99344.0,0.02398]
[1763090282936,0.3232,99360.0,99359.0,0.001]
[1763090283142,0.56790901,99360.0,99359.0,0.001]
[1763090283396,0.20134701,99331.0,99330.0,0.01972193]
[1763090284107,0.20132343,99343.0,99339.0,0.02759]
[1763090284307,0.20132696,99341.0,99339.0,0.02759]
[1763090284940,0.20134443,99333.0,99331.0,0.02398]
[1763090285060,0.20134701,99331.0,99330.0,0.02072193]
[1763090285508,0.20136267,99324.0,99320.0,0.1]
[1763090285717,0.20136653,99322.0,99320.0,0.10013768]
[1763090286553,0.00139,99344.0,99320.0,0.10013768]
[1763090286554,0.003,99324.0,99323.0,0.20136266]
[1763090286752,0.003,99324.0,99321.0,0.22534728]
[1763090287182,0.20135546,99327.0,99322.0,0.02373]
[1763090287421,0.00162665,99323.0,99322.0,0.02373]
[1763090288520,0.00162665,99323.0,99320.0,0.10113768]
[1763090288521,0.20136525,99322.0,99320.0,0.10113768]
[1763090288722,0.20136525,99322.0,99320.0,0.10013768]
[1763090289003,0.00105,99321.0,99320.0,0.10013768]
[1763090292010,0.20136525,99322.0,99320.0,0.10013768]
[1763090294035,0.00157504,99321.0,99320.0,0.10013768]
[1763090299175,0.03444196,99321.0,99320.0,0.10013768]
[1763090299715,0.35744196,99321.0,99320.0,0.10013768]
[1763090299926,0.4008607,99321.0,99320.0,0.10013768]
[1763090301031,0.20143015,99290.0,99289.0,0.01168]
[1763090301251,0.30209613,99307.0,99282.0,0.01168]
[1763090301252,0.20144435,99283.0,99282.0,0.01168]
[1763090301503,0.20144435,99283.0,99282.0,0.01181773]
[1763090301675,0.20249435,99283.0,99282.0,0.00013773]
[1763090302691,0.20249435,99283.0,99282.0,0.00113773]
[1763090303091,0.20144067,99285.0,99282.0,0.01181773]
[1763090303371,0.20144067,99285.0,99282.0,0.01281773]
[1763090303372,0.20144212,99285.0,99282.0,0.01281773]
[1763090303690,0.20144212,99285.0,99282.0,0.01181773]
[1763090304347,0.20144213,99285.0,99282.0,0.01181773]
[1763090305963,0.20144101,99286.0,99282.0,0.01181773]
[1763090306542,0.00077484,99290.0,99283.0,0.2488747]
[1763090306792,0.01006947,99310.0,99283.0,0.2488747]
[1763090306793,0.20141011,99300.0,99291.0,0.01507]
[1763090306981,0.09523237,99297.0,99292.0,0.01507]
[1763090307188,0.09523237,99297.0,99292.0,0.21649575]
[1763090307576,0.09523237,99297.0,99294.0,0.20142114]
[1763090307804,0.20139982,99305.0,99301.0,0.01168]
[1763090308081,0.20140175,99304.0,99301.0,0.01168]
[1763090308333,0.20139982,99305.0,99301.0,0.01168]
[1763090309332,0.20140558,99303.0,99301.0,0.01168]
[1763090309707,0.20139161,99309.0,99301.0,0.21308763]
[1763090309940,0.20139605,99307.0,99301.0,0.21308763]
[1763090310388,0.2013961,99307.0,99301.0,0.21308763]
[1763090310621,0.20139161,99309.0,99301.0,0.21308763]
[1763090311058,0.01006947,99310.0,99301.0,0.01168]
[1763090311273,0.20140547,99303.0,99301.0,0.01168]
[1763090313406,0.20139972,99305.0,99293.0,0.01127]
[1763090313617,0.20142095,99295.0,99293.0,0.01127]
[1763090313819,0.00087812,99294.0,99293.0,0.01127]
[1763090315131,0.00087812,99294.0,99293.0,0.21269406]
[1763090316673,0.09523237,99335.0,99330.0,0.20134821]
[1763090316891,0.09523237,99335.0,99332.0,0.20134479]
[1763090317098,0.00105,99331.0,99317.0,0.01127]
[1763090317302,0.20135136,99329.0,99318.0,0.20137336]
[1763090317564,0.20135847,99326.0,99317.0,0.01127]
[1763090317806,0.09523237,99332.0,99330.0,0.2013471]
[1763090318007,0.09536994,99332.0,99330.0,0.2013471]
[1763090319167,0.09536994,99332.0,99330.0,0.22106903]
[1763090320691,0.09536994,99332.0,99330.0,0.20134862]